Cogmind - Beta 16 @@@ ROGUE MODE // 2025.11.28 @ 14:51:48 Player: Plexion Result: Heading to fleet! Performance ------------- Evolutions (9) 4500 Regions Visited (24) 4800 Robots Destroyed (323) 1615 Value Destroyed (17841) 17841 Prototype IDs (390) 7800 Alien Tech Used (14) 2800 Bonus (50471) 50471 TOTAL SCORE: 89827 Bonus ------- High Alert Combat Kills 332 Follower Combat Kills 820 Forged Quantum Companion 2000 Registered with UFD 300 Met Optimus in HQ 500 Met Zhirov 300 Met R17 at Cetus 500 Used Core Reset Matrix 3000 Met R17 at Research 2000 Recovered Sigix Corpse 2000 Destroyed MAIN.C Guards 500 Met MAIN.C 5000 Destroyed MAIN.C Shell 5000 Destroyed MAIN.C 10000 Met Architect 300 Destroyed A6 400 Destroyed A5 500 Destroyed A4 700 Destroyed A2 1000 Destroyed Architect 15000 Win 3000 Friendly Fire -2681 Cogmind --------- Core Integrity 400/1600 Matter 280/300 Energy 869/880 System Corruption 10% Temperature Cool (14) Movement Hovering (29) Location To Fleet Rendezvous Parts ------- > --- POWER (2) -------- Zero-point Reactor Zero-point Reactor > --- PROPULSION (9) --- Cooled Linear Gravjet Cooled Linear Gravjet Combat Linear Gravjet Combat Linear Gravjet Combat Linear Gravjet Combat Linear Gravjet Combat Linear Gravjet Combat Linear Gravjet Combat Linear Gravjet > --- UTILITY (14) ----- Experimental Power Amplifier Large Storage Unit Experimental Terrain Scan Processor Advanced Melee Analysis Suite Experimental Melee Analysis Suite Experimental Core Analyzer Experimental Core Analyzer Improved Armor Integrity Analyzer Femtoactuators Experimental Reaction Control System Experimental Phase Shifter Centrium Linked Plating Centrium Linked Plating AEGIS Remote Shield > --- WEAPON (1) ------- Superquantum Companion > --- INVENTORY (15) --- Cooled Linear Gravjet Experimental Energy Well (600) Experimental Energy Well (600) Long-range Terrain Scanner Advanced Force Booster Experimental Phase Shifter Centrium Linked Plating Experimental Powered Armor Graphene Brace AEGIS Remote Shield High-powered Transdimensional Reconstructor High-powered Transdimensional Reconstructor Hypervelocity Multirail Sigix Corpse Peak State ------------ > --- POWER ------------ Zero-point Reactor Zero-point Reactor > --- PROPULSION ------- Cooled Linear Gravjet Combat Linear Gravjet Combat Linear Gravjet Combat Linear Gravjet Combat Linear Gravjet Combat Linear Gravjet Combat Linear Gravjet Combat Linear Gravjet Combat Linear Gravjet > --- UTILITY ---------- Experimental Power Amplifier Large Storage Unit Long-range Terrain Scanner Experimental Terrain Scan Processor Advanced Melee Analysis Suite Experimental Melee Analysis Suite Experimental Core Analyzer Experimental Core Analyzer Improved Armor Integrity Analyzer Experimental Reaction Control System Centrium Linked Plating AEGIS Remote Shield Architect God Chip A Architect God Chip A > --- WEAPON ----------- Superquantum Companion > --- INVENTORY -------- Cooled Linear Gravjet Experimental Power Amplifier Experimental Energy Well Experimental Energy Well Femtoactuators Advanced Force Booster Experimental Phase Shifter Centrium Linked Plating Experimental Powered Armor Graphene Brace AEGIS Remote Shield Architect God Chip D Architect God Chip D High-powered Transdimensional Reconstructor Hypervelocity Multirail [Rating: 251] Favorites ----------- Power Subdweller Power Source Engine Subdweller Power Source Power Core Neutrino Core Reactor Zero-point Reactor Propulsion Combat Linear Gravjet Treads Armored Treads Leg Advanced Myomer Leg Wheel Armored Wheel Hover Unit Combat Linear Gravjet Flight Unit Cooled VTOL Module Utility Advanced Melee Analysis Suite Device Seismic Detector Storage High-capacity Storage Unit Processor Advanced Melee Analysis Suite Hackware Improved Hacking Suite Protection Hardened Medium Armor Plating Artifact Spacefold Activator Weapon Companion Sword Energy Gun Subdweller Laser Energy Cannon Long-range Proton Cannon Ballistic Gun Battle Rifle Ballistic Cannon Battle Cannon Launcher Rocket Launcher Special Weapon Mining Laser Slashing Weapon Companion Sword Special Melee Weapon Improved Datajack Build | -11 -10 -10 -10 -8 -8 -6 -6 -6 -6 -6 -5 -5 -5 -5 -4 -4 -3 -3 -3 -2 -2 -1 -1 -1 ------- Run | Yrd Mat Min Sub Rec Scr Fac Was Fac Ext Cet Fac Upp Upp Zhi Pro Fac Res Qua Sec Res Tes Acc Com Ac0 Slots Evolved 18 | . . . . . . 8 . . . . 2 . . . . 2 2 . . 2 . 2 . . Power 1 | . . . . . . . . . . . 1 . . . . . . . . . . . . . Propulsion 6 | . . . . . . 4 . . . . . . . . . . . . . 2 . . . . Utility 12 | . . . . . . 4 . . . . 1 . . . . 2 2 . . 1 . 2 . . Weapon -1 | . . . . . . . . . . . . . . . . . . . . -1 . . . . Parts Attached 298 | 6 4 9 8 1 2 28 2 . 2 13 9 6 2 7 . 6 9 37 25 13 26 20 38 25 Power 32 | 1 1 . 1 . 1 1 1 . . 2 1 1 . 1 . . 1 6 3 . 4 . 5 2 Engine 6 | 1 1 . 1 . 1 . . . . 1 . . . . . . . 1 . . . . . . Core 4 | . . . . . . 1 . . . . 1 1 . . . . . 1 . . . . . . Reactor 22 | . . . . . . . 1 . . 1 . . . 1 . . 1 4 3 . 4 . 5 2 Propulsion 85 | 2 . 2 2 . . 11 . . . 6 3 1 1 3 . . . 19 8 5 5 8 5 4 Treads 8 | 2 . 2 2 . . 2 . . . . . . . . . . . . . . . . . . Leg 17 | . . . . . . 2 . . . 3 3 1 1 3 . . . 4 . . . . . . Wheel 1 | . . . . . . 1 . . . . . . . . . . . . . . . . . . Hover 52 | . . . . . . . . . . 2 . . . . . . . 15 8 5 5 8 5 4 Flight 7 | . . . . . . 6 . . . 1 . . . . . . . . . . . . . . Utility 152 | 1 3 4 . . . 13 1 . 1 3 5 3 1 3 . 6 7 9 12 8 14 12 28 18 Device 78 | . 1 1 . . . 3 1 . 1 1 2 2 1 . . 3 4 3 7 7 10 4 17 10 Storage 15 | 1 1 1 . . . 1 . . . . . . . 2 . 2 . 1 . . . 2 4 . Processor 25 | . . . . . . 5 . . . . 1 . . . . . 2 3 1 1 2 4 4 2 Hackware 12 | . . . . . . 4 . . . . . . . . . . 1 2 . . 1 . . 4 Protection 19 | . 1 2 . . . . . . . 2 2 1 . 1 . 1 . . 2 . . 2 3 2 Artifact 3 | . . . . . . . . . . . . . . . . . . . 2 . 1 . . . Weapon 29 | 2 . 3 5 1 1 3 . . 1 2 . 1 . . . . 1 3 2 . 3 . . 1 Energy Gun 6 | 1 . . 1 . . . . . . 1 . . . . . . . . . . 2 . . 1 Energy Cannon 3 | . . . . . . 1 . . . . . . . . . . . 1 1 . . . . . Ballistic Gun 7 | 1 . 1 3 . . . . . . 1 . . . . . . . . . . 1 . . . Ballistic Cannon 2 | . . 1 1 . . . . . . . . . . . . . . . . . . . . . Launcher 5 | . . 1 . . . 2 . . . . . 1 . . . . 1 . . . . . . . Special Weapon 3 | . . . . 1 . . . . . . . . . . . . . 1 1 . . . . . Impact Weapon . | . . . . . . . . . . . . . . . . . . . . . . . . . Slashing Weapon 2 | . . . . . 1 . . . . . . . . . . . . 1 . . . . . . Piercing Weapon . | . . . . . . . . . . . . . . . . . . . . . . . . . Special Melee Weapon 1 | . . . . . . . . . 1 . . . . . . . . . . . . . . . Unidentified Prototypes 59 | . . . . . 1 2 . . . 4 . 2 . 5 . 2 1 4 8 3 11 2 8 6 Corrupted Parts 6 | . . . . . . . . . . . . . . . . . . . . . . . 5 1 System Corruption 42 | . . . . . . . . . . . . . . . . . . . . . . . 35 7 Parts Lost 65 | . 1 . 2 . . 5 . . . 8 4 . . . . 4 . 19 7 . 1 . 6 8 Power 12 | . 1 . 1 . . 1 . . . 2 . . . . . 1 . 3 . . . . 2 1 Propulsion 28 | . . . . . . 3 . . . 3 2 . . . . . . 12 5 . . . 1 2 Utility 22 | . . . . . . 1 . . . 3 2 . . . . 2 . 4 2 . . . 3 5 Weapon 3 | . . . 1 . . . . . . . . . . . . 1 . . . . 1 . . . Highest Loss Streak 8 | . 1 . 1 . . 2 . . . 7 3 . . . . 3 . 8 4 . 1 . 2 3 To Critical Strikes 1 | . . . . . . . . . . 1 . . . . . . . . . . . . . . Average Backups 12 | 2 6 9 13 14 14 11 9 10 9 8 9 8 9 9 9 10 20 19 12 12 12 12 13 13 Power . | . . . . . . . . . . . 1 1 1 1 1 1 1 . . 1 1 1 1 . Propulsion 2 | . 2 4 4 4 2 . 1 1 1 . . . . . . . 3 2 1 1 1 1 3 1 Utility 4 | . 1 3 4 4 5 5 5 6 5 3 4 3 4 4 3 4 12 9 2 2 3 3 4 8 Weapon 3 | . 1 2 4 6 6 3 2 2 2 3 2 2 3 3 2 2 1 4 2 2 2 3 2 1 Tool/Special . | . . . . . . . . . . . . . . . . . . . . . . . . . Unused Backups 48 | . . 4 2 . 2 6 . 1 2 2 1 . . . . . 4 5 2 . 1 3 6 7 Power 2 | . . . . . . . . . . 1 . . . . . . . . . . . . 1 . Propulsion 9 | . . 2 1 . 1 1 . . . . . . . . . . 1 1 . . . . 2 . Utility 26 | . . . 1 . . 4 . 1 2 . 1 . . . . . 2 4 . . . 3 3 5 Weapon 7 | . . 2 . . 1 . . . . 1 . . . . . . . . 2 . 1 . . . Tool/Special 4 | . . . . . . 1 . . . . . . . . . . 1 . . . . . . 2 Average Slot Usage (%) 89 | . 97 100 99 100 95 68 66 66 66 61 72 77 82 79 80 77 78 84 89 94 94 95 94 98 Engine 5 | . 13 14 13 14 14 . . . . . . . . . . . . . . . . . . . Core 1 | . . . . . . 2 5 5 5 2 1 5 5 5 5 4 . . 1 . . . . . Reactor 3 | . . . . . . . . . . . 5 5 5 5 5 5 8 6 6 8 8 8 7 7 Treads 12 | . 28 28 28 28 28 7 . . . . . . . . . . . . . . . . . . Leg 4 | . . . . . . 6 . . . 3 17 18 23 23 23 21 19 11 . . . . . . Hover 7 | . . . . . . . . . . 1 . . . . . . . 9 25 33 34 32 31 33 Flight 1 | . . . . . . 5 16 16 16 9 . . . . . . . . . . . . . . Device 7 | . 7 11 12 . . 3 11 11 11 5 2 4 5 2 3 9 4 8 7 12 9 12 13 19 Storage 8 | . 14 14 14 14 14 5 5 5 5 5 5 5 5 5 5 4 4 4 4 4 4 4 7 3 Processor 9 | . . . . . . 10 11 11 11 11 11 11 11 11 11 10 14 23 22 17 17 18 17 22 Hackware 5 | . . . . . . 16 11 11 11 11 11 11 11 11 11 10 10 6 9 8 8 8 3 . Protection 5 | . 4 2 1 14 14 . . . . 1 7 5 5 5 5 5 8 3 2 4 4 4 8 5 Energy Gun 1 | . 14 2 5 . . . . . . . . . . . . . . . . . . . . . Ballistic Gun 8 | . 14 25 17 24 20 . . . . . . . . . . . . . . . . . . . Slashing Weapon 3 | . . . . . 3 5 5 5 5 5 5 5 5 5 5 5 4 4 4 4 3 4 3 2 Peak Build Rating 251 | 6 8 13 21 22 27 115 113 111 115 119 95 91 92 104 107 121 140 157 167 173 182 209 231 251 Average Rating 87 | 4 6 9 15 21 23 71 110 110 110 76 76 85 91 94 101 107 128 137 147 164 171 201 211 241 On Entrance 95 | . 6 7 9 21 22 27 111 111 111 111 58 89 91 91 99 102 104 139 151 157 164 182 205 226 Avg Prop Armor Cover (%) 13 | . . . . . . 24 . . . 3 . . . . . 17 . 14 . . . . . 1 Naked Turns . | . . . . . . . . . . . . . . . . . . . . . . . . . Heaviest Build 155 | 11 17 48 66 57 57 58 27 27 27 41 58 61 61 61 60 132 155 141 81 71 80 80 118 108 Greatest Support 147 | 40 40 40 40 40 40 80 34 38 38 45 95 105 110 140 140 140 140 140 76 105 109 120 120 147 Greatest Overweight (x) 4 | . . 1 1 1 1 4 . . . 2 1 . . . . 1 1 2 1 . . . 1 . Average Overweight (x) . | . . . 1 1 1 . . . . . . . . . . . . . . . . . . . Largest Inventory Capacity 25 | 8 10 20 20 20 20 20 10 10 10 10 10 10 10 10 10 25 25 25 15 15 15 15 15 15 Average Capacity 16 | 6 8 13 20 20 20 15 10 10 10 10 10 10 10 10 10 14 25 21 15 15 15 15 15 15 Most Carried 25 | 4 8 11 20 20 20 20 10 10 10 10 10 10 10 10 10 21 25 25 15 15 15 15 15 15 Average Carried 14 | 2 6 9 15 18 18 14 9 9 9 8 9 9 10 9 9 10 21 20 14 14 14 14 14 13 Final Capacity 25 | 8 10 20 20 20 20 10 10 10 10 10 10 10 10 10 10 25 25 15 15 15 15 15 15 15 Final Carried 24 | 4 7 11 18 20 19 10 10 10 10 9 10 10 10 10 10 19 24 13 15 15 14 15 15 14 Class Distribution -------------------- 35% | Mutant 19% | Hacker-Mutant 14% | Scavenger-Mutant 5% | Hacker-Scout 3% | Scavenger-Ninja 3% | Scavenger-Sprinter 3% | Alien-Sprinter Dominant Class ---------------- Mutant | -10/Materials Mutant | -10/Mines Mutant | -10/Subcaves Mutant | -8/Recycling Mutant | -8/Scraptown Hacker-Mutant | -6/Factory Hacker-Scout | -6/Waste Hacker-Scout | -6/Factory Commander-Scout | -6/Extension Commander-Scout | -6/Cetus Scavenger-Mutant | -5/Factory Hacker-Mutant | -5/Upper Caves Hacker-Mutant | -5/Upper Caves Hacker-Mutant | -5/Zhirov Hacker-Mutant | -4/Proximity Caves Hacker-Mutant | -4/Factory Hacker-Mutant | -3/Research Hacker-Mutant | -3/Quarantine Scavenger-Scout | -3/Section 7 Scavenger-Ninja | -2/Research Alien-Scout | -2/Testing Alien-Ninja | -1/Access Alien-Sprinter | -1/Command Scavenger-Sprinter | -1/Access_0 Resources | -11 -10 -10 -10 -8 -8 -6 -6 -6 -6 -6 -5 -5 -5 -5 -4 -4 -3 -3 -3 -2 -2 -1 -1 -1 ----------- Run | Yrd Mat Min Sub Rec Scr Fac Was Fac Ext Cet Fac Upp Upp Zhi Pro Fac Res Qua Sec Res Tes Acc Com Ac0 Matter Collected 7726 | 243 275 325 811 106 . 343 97 . 56 164 221 227 48 8 247 109 373 630 522 384 327 478 758 974 Remotely . | . . . . . . . . . . . . . . . . . . . . . . . . . Salvage Created 20023 | . 783 149 378 124 . 732 142 86 1029 322 906 370 . 8 144 1018 463 1532 1117 844 801 862 3921 4292 Parts 1026 | . 51 12 38 9 . 27 8 5 50 16 38 8 . . 21 51 27 95 67 46 58 25 165 209 Haulers Intercepted 16 | . 2 . . . . 3 . 1 . . . . . . . . . 1 3 1 1 4 . . Recyclers Shooed 1 | . 1 . . . . . . . . . . . . . . . . . . . . . . . Parts Field Recycled . | . . . . . . . . . . . . . . . . . . . . . . . . . Retrieved Matter . | . . . . . . . . . . . . . . . . . . . . . . . . . Parts Self-Destructed 23 | . . . 8 . . . . . . . . 4 2 . 9 . . . . . . . . . Prevented 6 | . . . . . . . . . . . . . 1 . 5 . . . . . . . . . Parts Restored . | . . . . . . . . . . . . . . . . . . . . . . . . . Kills | -11 -10 -10 -10 -8 -8 -6 -6 -6 -6 -6 -5 -5 -5 -5 -4 -4 -3 -3 -3 -2 -2 -1 -1 -1 ------- Run | Yrd Mat Min Sub Rec Scr Fac Was Fac Ext Cet Fac Upp Upp Zhi Pro Fac Res Qua Sec Res Tes Acc Com Ac0 Combat Hostiles Destroyed 231 | . 14 5 15 1 . 9 . . 16 4 15 5 . . 10 14 7 19 12 2 8 1 31 43 Melee 136 | . . . . . . 5 . . 16 4 15 1 . . . 8 2 15 12 1 8 . 17 32 Guns 32 | . 14 3 6 1 . . . . . . . . . . . . . . . . . . 4 4 Cannons 7 | . . . 2 . . . . . . . . . . . . . . 1 . . . 1 2 1 AOE 37 | . . 2 7 . . 4 . . . . . 4 . . 10 6 4 . . . . . . . Classes Destroyed 24 | . 9 . 4 . . 3 1 . . . . . . . 3 . . . . . 1 . 3 . Worker 23 | . 1 . . . . 1 . . . . . . . . . 1 3 . 1 9 1 1 5 . Builder 6 | . 2 . . . . . . . . . . . . . . . . . . 2 1 1 . . Tunneler 6 | . 2 2 . . . . . . . . 1 . . . . . 1 . . . . . . . Hauler 16 | . 2 . . . . 3 . 1 . . . . . . . . . 1 3 1 1 4 . . Recycler 7 | . 1 . . . . . . . . . . . . . . 3 . . . 1 1 1 . . Minesweeper 1 | . . . . . . . . . . . . . . . 1 . . . . . . . . . Mechanic 1 | . . . . . . . . . . . . . . . . . . . . . . . 1 . Operator 5 | . 1 . . . . 1 . . 1 . . . . . . . . . . 2 . . . . Drone 2 | . . . . . . . . . . . . . . . 2 . . . . . . . . . Turret 2 | . . . 2 . . . . . . . . . . . . . . . . . . . . . Watcher 18 | . 2 . . . . 1 . . 1 2 . . . . . . . 2 2 3 . 4 1 . Swarmer 43 | . 6 3 4 . . 2 . . . . 4 . . . 8 5 4 3 4 . . . . . Grunt 39 | . 8 2 1 . . 3 . . 7 . 3 2 . . . 3 . . . . . 1 9 . Brawler 2 | . . . . . . 1 . . . . . . . . . . . . . . . . 1 . Sentry 31 | . . . 1 1 . . . . 6 . 6 1 . . . 4 2 3 . 2 . . 5 . Hunter 16 | . . . . . . 2 . . 3 . . 2 . . . . 1 2 2 . . . 4 . Programmer 35 | . . . . . . 1 . . . . 2 . . . . 2 . 11 5 . 7 . 7 . Cetus Guard 4 | . . . . . . . . . . 4 . . . . . . . . . . . . . . S7 Guard 1 | . . . . . . . . . . . . . . . . . . . 1 . . . . . M Guard 2 | . . . . . . . . . . . . . . . . . . . . . . . 2 . Enhanced Grunt 26 | . . . . . . . . . . . . . . . . . . . . . . . . 26 Enhanced Sentry 5 | . . . . . . . . . . . . . . . . . . . . . . . . 5 Enhanced Hunter 5 | . . . . . . . . . . . . . . . . . . . . . . . . 5 Combat Programmer 2 | . . . . . . . . . . . . . . . . . . . . . . . 2 . Protovariant X 1 | . . . . . . . . . . . . . . . . . . . . . 1 . . . Artisan 1 | . . . 1 . . . . . . . . . . . . . . . . . . . . . Subdweller 10 | . . . 10 . . . . . . . . . . . . . . . . . . . . . Scrapoid 4 | . . . . . . . . . . . . . . . . . . . . . . . 4 . Samaritan 1 | . . . . . . . . . . . . . . . 1 . . . . . . . . . Assembled 6 | . . . . . . . . . . . . . . . . . . . . . . . 6 . Martyr 2 | . . . . . . . 2 . . . . . . . . . . . . . . . . . Best Kill Streak 7 | . 4 3 4 1 . 4 . 1 4 2 4 4 . . 4 4 6 4 4 5 7 3 7 6 Combat Bots Only 7 | . 3 3 4 1 . 3 . . 4 2 4 4 . . 4 4 4 3 4 1 6 1 7 6 Max Kills in Single Turn 4 | . 2 1 3 1 . 4 1 1 1 1 1 2 . . 3 3 2 2 2 1 1 1 3 1 Gunslinging 1 | . 1 . . . . . . . . . . . . . . . . . . . . . . . Exploded 3 | . . 1 2 . . 3 . . . . . 2 . . 3 3 1 . . . . . . . Melee 2 | . . . . . . 1 . . 1 1 1 1 . . . 1 1 2 2 1 1 . 1 1 Uniques/NPCs Destroyed 9 | . . . . . . . . . . . . . . . . . . . . . . . 2 7 MAIN.C Shell (-1/Command) MAIN.C (-1/Command) A8 (-1/Access_0) A6 (-1/Access_0) A5 (-1/Access_0) A2 (-1/Access_0) A4 (-1/Access_0) Architect (-1/Access_0) A3 (-1/Access_0) Combat | -11 -10 -10 -10 -8 -8 -6 -6 -6 -6 -6 -5 -5 -5 -5 -4 -4 -3 -3 -3 -2 -2 -1 -1 -1 -------- Run | Yrd Mat Min Sub Rec Scr Fac Was Fac Ext Cet Fac Upp Upp Zhi Pro Fac Res Qua Sec Res Tes Acc Com Ac0 Hostile Shots Fired 2043 | . 58 13 62 4 . 82 . 27 94 98 117 38 . . 21 159 19 221 73 3 34 39 242 639 Missed 872 | . 17 3 16 1 . 11 . 10 48 37 28 12 . . 8 52 3 64 29 1 12 19 76 425 Intercepted 12 | . . . . . . . . . . . . . . . . . . . . . . . 12 . Deflected 19 | . . . . . . . . . . . . . . . . . . 1 1 . 1 3 5 8 Hits 1171 | . 41 10 46 3 . 71 . 17 46 61 89 26 . . 13 107 16 157 44 2 22 20 166 214 Melee 15 | . . . . . . . . 2 . . . . . . . 1 . . . . . . . 12 Projectile 1156 | . 41 10 46 3 . 71 . 15 46 61 89 26 . . 13 106 16 157 44 2 22 20 166 202 AOE 6 | . . . 2 . . . . . . . . . . . . . . . . . . . 4 . Critical Strikes 70 | . . . 2 . . 2 . . 2 8 5 . . . . 9 . 6 3 . 1 . 9 23 Actively Blocked 11 | . . . . . . . . . . . . . . . . 1 . 1 . . . . 9 . Part Disruptions 12 | . . . . . . . . . . . . . . . . 1 . 2 . . 1 . 6 2 Damage Taken 26045 | . 465 115 778 42 . 1386 . 274 599 1862 1906 501 . . 260 2542 506 3691 1161 88 1122 800 4432 3515 Core 4919 | . 100 10 102 27 . 253 . 20 96 443 142 48 . . 50 231 43 571 409 62 718 470 615 509 Absorbed by Shields 4678 | . . . . . . . . . 10 . . . . . . . . 340 . . . . 1057 3271 Redirected to Shielding 327 | . 4 . . . . . . . . . . . . . . 14 14 82 . . . . 213 . Ignored by Resistances 154 | . . . . . . . . . . . . . . . . . . . . . . . 154 . Regen/Repaired (Parts) 5717 | . . . . . 583 . . . . 1 538 . . . . . . . 508 . 190 248 3029 620 Core Remaining (%) 43 | 100 . . . . 4 . . . . 4 . . . . 76 71 . . 20 . 46 . . 25 Volleys Fired 321 | . 63 28 75 14 . 9 . . 6 . 2 9 . . 7 10 7 13 14 . 1 1 24 38 Largest 2 | . 2 2 2 2 . 1 . . 1 . 1 1 . . 1 1 1 1 1 . 1 1 1 1 Hottest 240 | . 60 60 108 100 . 85 . . 85 . 240 43 . . 43 240 46 240 240 . 240 240 240 81 Shots Fired 416 | . 125 45 89 16 . 9 . . 6 . 2 9 . . 7 10 7 14 14 . 1 1 24 37 Gun 269 | . 125 34 43 8 . . . . . . 2 . . . . 4 . 4 12 . 1 1 7 28 Cannon 80 | . . 9 30 . . 6 . . 6 . . . . . . . . 3 . . . . 17 9 Launcher 56 | . . 2 16 . . 3 . . . . . 9 . . 7 6 7 6 . . . . . . Special 11 | . . . . 8 . . . . . . . . . . . . . 1 2 . . . . . Kinetic 199 | . 63 42 53 8 . . . . . . . . . . . . . . . . . . 5 28 Thermal 129 | . 62 1 20 8 . 6 . . 6 . 2 . . . . 4 . 4 12 . 1 1 2 . Explosive 43 | . . 2 16 . . 3 . . . . . 9 . . 7 6 . . . . . . . . Electromagnetic 42 | . . . . . . . . . . . . . . . . . 7 9 . . . . 17 9 Robot Hit Streak 12 | . 7 12 9 3 . 2 . . 4 . . 7 . . 8 3 . 2 3 . . . 9 4 Robot Miss Streak 5 | . 3 3 4 1 . 1 . . 1 . . 1 . . 2 . . 2 . . . . 3 5 Penetration Max 2 | . . . . . . . . . . . . . . . . . . . . . . . 2 1 Secondary Targets 3 | . 3 . . . . . . . . . . . . . . . . . . . . . . . Max Gunslinging Chain 1 | . 1 . . . . . . . . . . . . . . . . . . . . . . . Autonomous 19 | . . . . . . . . . . . . . . . . . . 1 2 . . 4 6 6 Shots Hit Robots 931 | . 76 19 27 3 . 35 2 4 54 28 62 16 . 1 6 40 13 72 36 23 21 16 134 243 Core Hits 487 | . 39 9 31 3 . 22 2 2 21 8 23 10 . 1 13 28 12 31 17 12 10 7 60 126 Critical Kills 7 | . . . . . . . . . . . . . . . . . . . . . . . 3 4 Critical Parts Destroyed 13 | . . . . . . . . . . . . . . . . . . . . . . . 5 8 Critical Strikes 63 | . . . 2 . . 2 . 2 2 2 2 . . . . 4 2 2 . . . 2 9 32 Destroy 21 | . . . 1 . . . . . . . . . . . . . . . . . . . 8 12 Blast 1 | . . . 1 . . . . . . . . . . . . . . . . . . . . . Corrupt 1 | . . . . . . . . . . . . . . . . . . . . . . . 1 . Melee Attacks 1061 | . . . . . . 72 2 12 54 28 71 9 . 1 15 63 31 110 58 44 51 38 142 260 Impact . | . . . . . . . . . . . . . . . . . . . . . . . . . Slashing 1061 | . . . . . . 72 2 12 54 28 71 9 . 1 15 63 31 110 58 44 51 38 142 260 Piercing . | . . . . . . . . . . . . . . . . . . . . . . . . . Sneak Attacks 108 | . . . . . . 5 2 1 8 . 1 . . . 3 3 4 4 9 17 8 8 25 10 Combat Hostiles 14 | . . . . . . . . . 2 . . . . . . . 1 . 1 2 . . 4 4 Follow-up Attacks 25 | . . . . . . . . . 2 3 1 . . . . . . 2 1 . 2 . 1 13 Damage Inflicted 67535 | . 937 378 1266 118 . 2192 152 244 2936 1228 2719 1295 . 95 1166 2848 1163 3931 3645 3222 2092 2199 13790 19919 Guns 1836 | . 927 237 254 107 . . . . . . . . . . . . . . . . . . 103 208 Cannons 2210 | . . . 73 . . . . . 165 . . . . . . . . 158 179 . . 323 687 625 Explosions 5131 | . . 139 939 . . 501 . . . . . 801 . . 818 1126 456 351 . . . . . . Melee 58335 | . . . . . . 1691 152 244 2771 1228 2719 494 . 95 348 1722 707 3422 3466 3222 2092 1876 13000 19086 Ramming 23 | . 10 2 . 11 . . . . . . . . . . . . . . . . . . . . Kinetic 1419 | . 494 225 282 107 . . . . . . . . . . . . . . . . . . 103 208 Thermal 818 | . 433 12 45 . . . . . 165 . . . . . . . 163 . . . . . . . Explosive 4324 | . . 139 939 . . 501 . . . . . 801 . . 818 1126 . . . . . . . . Electromagnetic 1037 | . . . . . . . . . . . . . . . . . 293 434 . . . . 192 118 Impact . | . . . . . . . . . . . . . . . . . . . . . . . . . Slashing 58335 | . . . . . . 1691 152 244 2771 1228 2719 494 . 95 348 1722 707 3422 3466 3222 2092 1876 13000 19086 Piercing . | . . . . . . . . . . . . . . . . . . . . . . . . . Phasic 1579 | . . . . . . . . . . . . . . . . . . 75 179 . . 323 495 507 Highest Corruption 36 | . . . . . . 2 . . 4 4 4 4 4 4 4 11 . 36 5 3 3 2 36 10 Average Corruption 7 | . . . . . . 1 . . 3 4 3 4 4 4 4 2 . 14 4 2 1 1 16 8 Corruption Purged 56 | . . . . . . 2 . . . . . . . . . . . . . . 3 . 51 . Corruption Blocked . | . . . . . . . . . . . . . . . . . . . . . . . . . Effects 249 | . . . . . . . . . 13 12 12 9 12 5 8 10 . 51 17 1 4 3 51 41 Message Errors 72 | . . . . . . . . . 4 4 3 1 6 3 2 6 . 14 5 . 2 2 10 10 Matter Fused 63 | . . . . . . . . . 3 3 5 2 1 2 2 1 . 15 5 . 2 . 10 12 Heat Flow Errors 23 | . . . . . . . . . 3 1 . 3 . . 3 . . 1 2 . . 1 5 4 Energy Discharges 28 | . . . . . . . . . 1 2 1 2 4 . . . . 1 2 . . . 10 5 Parts Rejected 1 | . . . . . . . . . . . . . . . . . . . . . . . 1 . Parts Fused 1 | . . . . . . . . . . . . . . . . . . 1 . . . . . . Data Loss (minor) 31 | . . . . . . . . . 2 1 2 . . . 1 2 . 5 1 1 . . 9 7 Data Loss (major) 12 | . . . . . . . . . . 1 . . 1 . . 1 . 4 1 . . . 3 1 Misfires 1 | . . . . . . . . . . . . . . . . . . 1 . . . . . . Alerts 6 | . . . . . . . . . . . 1 1 . . . . . 2 1 . . . . 1 Misdirections 10 | . . . . . . . . . . . . . . . . . . 7 . . . . 3 . Weapon Failures 1 | . . . . . . . . . . . . . . . . . . . . . . . . 1 Overload Shots 17 | . . . . . . . . . . . 2 . . . . 4 . 3 4 . 1 1 2 . Overflow Damage 6508 | . . . . . . 126 . . 239 19 121 226 . . 209 107 131 397 352 1141 336 419 1761 924 Projectiles 62 | . . . . . . . . . . . . . . . . . . 31 . . . 2 29 . Explosions 28 | . . . . . . . . . . . . . . . 5 . 23 . . . . . . . Melee 6418 | . . . . . . 126 . . 239 19 121 226 . . 204 107 108 366 352 1141 336 417 1732 924 Knockbacks 1 | . 1 . . . . . . . . . . . . . . . . . . . . . . . Impact 1 | . 1 . . . . . . . . . . . . . . . . . . . . . . . Kinetic . | . . . . . . . . . . . . . . . . . . . . . . . . . Secondary . | . . . . . . . . . . . . . . . . . . . . . . . . . Self-Inflicted Damage 302 | . . . 95 . . . . . . . . . . . 98 23 86 . . . . . . . Shots 12 | . . . 4 . . . . . . . . . . . 2 1 5 . . . . . . . Rammed 8 | . 5 1 . 2 . . . . . . . . . . . . . . . . . . . . Targets Rammed 8 | . 5 1 . 2 . . . . . . . . . . . . . . . . . . . . Kicked . | . . . . . . . . . . . . . . . . . . . . . . . . . Crushed . | . . . . . . . . . . . . . . . . . . . . . . . . . Highest Temperature 408 | . 46 24 . 65 . 102 . 101 204 184 408 276 . . 229 148 . 196 330 12 136 185 256 194 Average Temperature 66 | . 14 7 . 24 . 31 . 41 72 100 189 95 . . 108 81 . 29 94 10 60 95 106 91 Received Heat Transfer 2403 | . 180 36 99 18 . 99 . 39 150 270 282 72 . . 9 249 54 63 416 9 . 9 228 121 Effects 2 | . . . . . . . . . . . . 1 . . . . . . 1 . . . . . Energy Bleed 2 | . . . . . . . . . . . . 1 . . . . . . 1 . . . . . Siege Activations . | . . . . . . . . . . . . . . . . . . . . . . . . . Martial Activations . | . . . . . . . . . . . . . . . . . . . . . . . . . Shielding Activations . | . . . . . . . . . . . . . . . . . . . . . . . . . Robots Disrupted 13 | . . . . . . . . . 1 . 1 . . . . . . 2 1 1 . 1 . 6 Combat Hostiles 11 | . . . . . . . . . 1 . 1 . . . . . . 2 . . . 1 . 6 Robots Corrupted 6 | . . . . . . . . . . . . . . . . . . 3 . . . . 2 1 Combat Hostiles 6 | . . . . . . . . . . . . . . . . . . 3 . . . . 2 1 Parts Fried 15 | . . . . . . . . . . . . . . . . . 3 5 . . . . 5 2 Impact Corruptions . | . . . . . . . . . . . . . . . . . . . . . . . . . Robots Melted . | . . . . . . . . . . . . . . . . . . . . . . . . . Combat Hostiles . | . . . . . . . . . . . . . . . . . . . . . . . . . Parts Melted 3 | . . . . . . . . . 2 . . . . . . . . . . . . . 1 . Heat Transferred 1310 | . 1000 25 50 . . . . . 185 . . . . . . . 50 . . . . . . . Parts Sabotaged . | . . . . . . . . . . . . . . . . . . . . . . . . . Parts Stolen . | . . . . . . . . . . . . . . . . . . . . . . . . . Parts Stripped 129 | . . . . . . . . . . . . . . . . . . . . 7 . 12 54 56 Power Chain Reactions 2 | . . . . . . . . . . . . . . . . . 2 . . . . . . . Alert | -11 -10 -10 -10 -8 -8 -6 -6 -6 -6 -6 -5 -5 -5 -5 -4 -4 -3 -3 -3 -2 -2 -1 -1 -1 ------- Run | Yrd Mat Min Sub Rec Scr Fac Was Fac Ext Cet Fac Upp Upp Zhi Pro Fac Res Qua Sec Res Tes Acc Com Ac0 Maximum Alert Level 3 | . . . . . . 2 1 2 2 1 1 . . . . 1 . . . . 1 . 3 . Low Security (%) 79 | 100 100 100 . 100 . 68 72 34 . 65 92 . . . . 89 100 100 100 100 97 100 13 . Level 1 8 | . . . . . . 9 27 32 81 34 7 . . . . 10 . . . . 2 . 11 . Level 2 5 | . . . . . . 21 . 33 18 . . . . . . . . . . . . . 20 . Level 3 5 | . . . . . . . . . . . . . . . . . . . . . . . 55 . Level 4 . | . . . . . . . . . . . . . . . . . . . . . . . . . Level 5 . | . . . . . . . . . . . . . . . . . . . . . . . . . High Security . | . . . . . . . . . . . . . . . . . . . . . . . . . Max Security . | . . . . . . . . . . . . . . . . . . . . . . . . . Peak Influence 670 | . 161 81 . 70 . 634 220 635 469 311 228 . . . . 255 131 137 178 107 209 86 670 . Initial 310 | . . 56 . . . . 220 88 310 243 . . . . . 175 102 11 55 . 49 64 3 . Average 103 | . 52 12 . 7 . 164 180 306 334 105 70 . . . . 134 54 66 54 42 94 30 351 . Influence Increases 10370 | . 448 190 470 182 . 1168 36 1067 713 211 589 120 . . 195 806 316 739 577 269 447 338 1174 315 Destroy 0b10 Robot/C 4080 | . 280 140 140 20 . 180 . 320 400 140 340 100 . . 160 280 140 380 240 40 160 20 600 . Destroy 0b10 Robot/NC 490 | . 55 10 . 5 . 30 . 35 10 10 5 10 . . 15 20 20 20 30 90 20 55 50 . Destroy Leader 788 | . 68 20 . . . 38 . 76 42 . 90 10 . . 20 60 40 76 60 28 32 16 112 . Allied During Kill 315 | . . 8 . . . . . 43 122 60 3 . . . . . . . . . . . 79 . Successful Hack 417 | . 14 . . . . 34 . 15 48 . 60 . . . . 18 22 50 52 . 10 94 . . Select Force Hacks 210 | . . . . 150 . . . . . . . . . . . . . . . . . 60 . . Disable Machine 660 | . . . . . . . . 30 15 . 15 . . . . 15 . 105 105 30 135 . 30 180 Destroy Structure 680 | . 1 12 . 7 . 61 36 8 1 1 16 . . . . 128 64 48 30 51 45 63 33 75 Advance Influence 150 | . . . . . . . . . . . . . . . . 150 . . . . . . . . Partial Spotted 390 | . . . . . . 45 . 15 75 . 15 . . . . . . . 15 30 45 30 60 60 Lose Combat Pursuer 1290 | . 30 . 330 . . 180 . 225 . . 45 . . . . 135 30 60 45 . . . 210 . Active Sensor Use 900 | . . . . . . 600 . 300 . . . . . . . . . . . . . . . . Influence Decreases 10135 | . 303 298 507 182 . 537 541 558 913 646 455 254 . . 153 651 492 661 674 182 429 440 437 822 Entered New Map 2121 | . . 89 20 . . . 411 38 325 192 . 51 . . . 17 95 10 44 2 40 43 2 742 Time Decay 6080 | . 293 209 470 182 . 310 130 150 368 184 355 193 . . 153 494 397 451 420 180 369 397 375 . Search Patrol Dispatched 300 | . . . . . . 200 . . . . . . . . . 100 . . . . . . . . Lost Part 600 | . 10 . 10 . . 20 . . . 80 40 . . . . 40 . 190 60 . 10 . 60 80 Lost Ally 734 | . . . 7 . . 7 . 220 220 190 60 10 . . . . . 10 . . 10 . . . Purge Threat 300 | . . . . . . . . 150 . . . . . . . . . . 150 . . . . . Squads Dispatched 78 | . 4 . . . . 18 . 8 2 . 3 . . . . 5 5 7 5 3 5 9 4 . Investigation 30 | . 2 . . . . 10 . 5 2 . . . . . . 1 2 1 . . 2 4 1 . Extermination 32 | . . . . . . 4 . 1 . . 3 . . . . 3 1 5 3 2 3 4 3 . Reinforcement 14 | . 2 . . . . 2 . 2 . . . . . . . 1 2 1 2 1 . 1 . . Assault 2 | . . . . . . 2 . . . . . . . . . . . . . . . . . . Garrison . | . . . . . . . . . . . . . . . . . . . . . . . . . Intercept . | . . . . . . . . . . . . . . . . . . . . . . . . . Searches Triggered 3 | . . . . . . 2 . . . . . . . . . 1 . . . . . . . . Construction Impeded . | . . . . . . . . . . . . . . . . . . . . . . . . . Haulers Reinforced 1 | . . . . . . . . . . . . . . . . . . . . . . 1 . . Active Scanning Responses 9 | . . . . . . 6 . 3 . . . . . . . . . . . . . . . . Cargo Convoy Interrupts 1 | . . . . . . 1 . . . . . . . . . . . . . . . . . . Stealth | -11 -10 -10 -10 -8 -8 -6 -6 -6 -6 -6 -5 -5 -5 -5 -4 -4 -3 -3 -3 -2 -2 -1 -1 -1 --------- Run | Yrd Mat Min Sub Rec Scr Fac Was Fac Ext Cet Fac Upp Upp Zhi Pro Fac Res Qua Sec Res Tes Acc Com Ac0 Distress Signals 55 | . 1 1 . . . 5 . 7 2 2 1 . . . . 1 6 1 2 1 . 1 24 . Communications Jammed 3 | . . . . . . . . . . . . . . . 1 1 . . . . . . 1 . Distress Signals 2 | . . . . . . . . . . . . . . . . 1 . . . . . . 1 . Times Spotted 417 | . 27 7 21 1 . 33 6 18 27 9 23 5 . . 10 30 10 34 18 9 13 14 42 60 Peak Tracking Total 10 | . 4 3 4 . . 7 6 8 4 5 5 4 . . 4 7 4 5 6 3 3 6 10 4 Tactical Retreats 46 | . 1 . 7 . . 6 . 6 2 . 2 . . . . 3 2 4 2 2 . 4 5 . ECM-based Alert Blocks 14 | . . . . . . . . . 3 . . . . . . . . 1 . 2 . 8 . . Traps | -11 -10 -10 -10 -8 -8 -6 -6 -6 -6 -6 -5 -5 -5 -5 -4 -4 -3 -3 -3 -2 -2 -1 -1 -1 ------- Run | Yrd Mat Min Sub Rec Scr Fac Was Fac Ext Cet Fac Upp Upp Zhi Pro Fac Res Qua Sec Res Tes Acc Com Ac0 Traps Triggered 19 | . 3 1 . . . 4 . 1 2 . . . . . . 1 1 2 . 2 . 1 1 . Indirectly 1 | . . . . . . . . . . . . . . . . . 1 . . . . . . . Trap Hack Attempts . | . . . . . . . . . . . . . . . . . . . . . . . . . Triggered . | . . . . . . . . . . . . . . . . . . . . . . . . . Disarmed . | . . . . . . . . . . . . . . . . . . . . . . . . . Reprogrammed . | . . . . . . . . . . . . . . . . . . . . . . . . . Reused 2 | . . . 2 . . . . . . . . . . . . . . . . . . . . . Traps Extracted . | . . . . . . . . . . . . . . . . . . . . . . . . . Installed 2 | . . . 2 . . . . . . . . . . . . . . . . . . . . . Triggered . | . . . . . . . . . . . . . . . . . . . . . . . . . Most Traps Carried 2 | . . . 2 . . . . . . . . . . . . . . . . . . . . . Machines | -11 -10 -10 -10 -8 -8 -6 -6 -6 -6 -6 -5 -5 -5 -5 -4 -4 -3 -3 -3 -2 -2 -1 -1 -1 ---------- Run | Yrd Mat Min Sub Rec Scr Fac Was Fac Ext Cet Fac Upp Upp Zhi Pro Fac Res Qua Sec Res Tes Acc Com Ac0 Machines Disabled 49 | . . . 5 . . . . 2 1 . 1 . . . . 1 . 7 7 2 9 . 2 12 Max in Single Turn 2 | . . . 2 . . . . . 1 . 1 . . . . 1 . 1 1 1 1 . 1 1 Garrison Access 7 | . . . . . . 3 . . . . 1 . . . . 1 . 1 . . 1 . . . Machines Repaired . | . . . . . . . . . . . . . . . . . . . . . . . . . Machines Dismantled . | . . . . . . . . . . . . . . . . . . . . . . . . . Machines Sabotaged . | . . . . . . . . . . . . . . . . . . . . . . . . . Overloaded Fab Kills . | . . . . . . . . . . . . . . . . . . . . . . . . . Hacking | -11 -10 -10 -10 -8 -8 -6 -6 -6 -6 -6 -5 -5 -5 -5 -4 -4 -3 -3 -3 -2 -2 -1 -1 -1 --------- Run | Yrd Mat Min Sub Rec Scr Fac Was Fac Ext Cet Fac Upp Upp Zhi Pro Fac Res Qua Sec Res Tes Acc Com Ac0 Machines Accessed 129 | . 2 1 2 8 3 21 . 9 11 . 7 . . 4 . 5 3 9 10 4 9 13 8 . Terminals 69 | . 2 . . 3 . 10 . 5 10 . 3 . . . . 2 1 6 8 2 3 8 6 . Fabricators 8 | . . . . . . 1 . 1 . . 1 . . . . . 1 . . . 2 2 . . Repair Stations 4 | . . . . . . . . . . . 1 . . . . . . . 1 . 1 . 1 . Recycling Units 16 | . . . . 5 . 6 . 2 1 . . . . . . 1 . . . . . . 1 . Scanalyzers 14 | . . . . . . 2 . 1 . . 1 . . . . . 1 2 1 2 2 2 . . Garrison Access 8 | . . . . . . 2 . . . . 1 . . . . 2 . 1 . . 1 1 . . Total Hacks 302 | . 10 1 5 14 8 50 . 22 21 . 21 . . 17 . 10 6 19 27 6 27 24 14 . Successful 167 | . 5 1 5 8 8 33 . 14 13 . 13 . . 17 . 4 5 6 11 . 13 9 2 . Failed 134 | . 5 . . 6 . 17 . 8 8 . 8 . . . . 6 1 13 15 6 14 15 12 . Catastrophic 26 | . . . . 2 . 2 . 1 . . 1 . . . . . 1 2 2 2 2 5 6 . Database Lockouts 1 | . . . . . . . . . . . . . . . . . . . 1 . . . . . Manual 119 | . 10 . . 14 . 35 . 8 13 . 5 . . . . 2 . 4 2 4 9 5 8 . Terminals 170 | . 10 . . 8 . 31 . 15 20 . 11 . . . . 5 1 12 16 4 9 16 12 . Fabricators 17 | . . . . . . 1 . 1 . . 2 . . . . . 2 . . . 7 4 . . Repair Stations 7 | . . . . . . . . . . . 2 . . . . . . . 3 . 1 . 1 . Recycling Units 22 | . . . . 6 . 9 . 3 1 . . . . . . 2 . . . . . . 1 . Scanalyzers 40 | . . . . . . 6 . 3 . . 3 . . . . . 3 5 8 2 8 2 . . Garrison Access 15 | . . . . . . 3 . . . . 3 . . . . 3 . 2 . . 2 2 . . Terminal Hacks 74 | . 1 1 5 . 8 10 . 4 9 . 4 . . 17 . 2 . 2 6 . 2 2 1 . Record 9 | . . . 4 . . . . . . . . . . 5 . . . . . . . . . . Part Schematic 5 | . . . . . . . . . . . 1 . . 4 . . . . . . . . . . Robot Analysis 12 | . . . . . 6 1 . . 1 . . . . 4 . . . . . . . . . . Prototype ID Bank 6 | . . . . . . . . . 1 . . . . 4 . 1 . . . . . . . . Open Door 11 | . . 1 . . 1 . . . 4 . . . . . . . . . 3 . . 1 1 . Branch Access Points 3 | . . . . . . 1 . 1 . . 1 . . . . . . . . . . . . . Terminal Index 6 | . 1 . . . . 1 . 1 1 . . . . . . . . 1 . . . 1 . . Scanalyzer Index 1 | . . . . . . . . . . . 1 . . . . . . . . . . . . . Garrison Index 1 | . . . . . . 1 . . . . . . . . . . . . . . . . . . Unreport Threat 2 | . . . . . . . . 1 . . . . . . . . . . 1 . . . . . Locate Traps 4 | . . . . . . 1 . 1 . . 1 . . . . . . . 1 . . . . . Transport Status 1 | . . . . . . 1 . . . . . . . . . . . . . . . . . . Recall Investigation 2 | . . . . . . 1 . . 1 . . . . . . . . . . . . . . . Recall Extermination 2 | . . . . . . 1 . . . . . . . . . . . . 1 . . . . . Hauler Manifests 3 | . . . . . . 1 . . 1 . . . . . . . . . . . 1 . . . Registered Components 4 | . . . . . . 1 . . . . . . . . . 1 . 1 . . 1 . . . Proto ID Catalog 2 | . . . 1 . 1 . . . . . . . . . . . . . . . . . . . Fabricator Hacks 11 | . . . . . . 1 . 1 . . 1 . . . . . 2 . . . 3 3 . . Network Status 3 | . . . . . . 1 . 1 . . . . . . . . 1 . . . . . . . Load Schematic 3 | . . . . . . . . . . . . . . . . . . . . . 2 1 . . Build 5 | . . . . . . . . . . . 1 . . . . . 1 . . . 1 2 . . Repair Station Hacks 4 | . . . . . . . . . . . 2 . . . . . . . 2 . . . . . Scan Component 2 | . . . . . . . . . . . 1 . . . . . . . 1 . . . . . Repair 2 | . . . . . . . . . . . 1 . . . . . . . 1 . . . . . Recycling Unit Hacks 4 | . . . . . . 4 . . . . . . . . . . . . . . . . . . Retrieve Components 4 | . . . . . . 4 . . . . . . . . . . . . . . . . . . Scanalyzer 22 | . . . . . . 6 . 3 . . 3 . . . . . 3 1 3 . 3 . . . Insert Component 4 | . . . . . . 2 . . . . . . . . . . . . 1 . 1 . . . Analyze 5 | . . . . . . 3 . . . . . . . . . . . . 1 . 1 . . . Retrieve Study 13 | . . . . . . 1 . 3 . . 3 . . . . . 3 1 1 . 1 . . . Garrison Access Hacks 6 | . . . . . . 2 . . . . 1 . . . . 1 . 1 . . 1 . . . Seal Access 6 | . . . . . . 2 . . . . 1 . . . . 1 . 1 . . 1 . . . Unauthorized Hacks 46 | . 4 . . 8 . 10 . 6 4 . 2 . . . . 1 . 2 . . 4 4 1 . Terminals 27 | . 4 . . 3 . 6 . 4 3 . 2 . . . . . . 2 . . 2 1 . . Assimilate 8 | . . . . . . 1 . 1 3 . . . . . . . . 1 . . 1 1 . . Botnet 7 | . 1 . . 1 . 1 . 1 . . 2 . . . . . . . . . 1 . . . Operators 4 | . 1 . . . . 1 . 1 . . . . . . . . . 1 . . . . . . Skim 8 | . 2 . . 2 . 3 . 1 . . . . . . . . . . . . . . . . Fabricators 3 | . . . . . . . . . . . . . . . . . . . . . 2 1 . . Prioritize 1 | . . . . . . . . . . . . . . . . . . . . . . 1 . . Recompile 2 | . . . . . . . . . . . . . . . . . . . . . 2 . . . Repair Stations . | . . . . . . . . . . . . . . . . . . . . . . . . . Recycling Units 14 | . . . . 5 . 4 . 2 1 . . . . . . 1 . . . . . . 1 . Tunnel 5 | . . . . 5 . . . . . . . . . . . . . . . . . . . . Fedlink 8 | . . . . . . 4 . 2 1 . . . . . . 1 . . . . . . . . Scrapoids 1 | . . . . . . . . . . . . . . . . . . . . . . . 1 . Scanalyzers 2 | . . . . . . . . . . . . . . . . . . . . . . 2 . . Extract 2 | . . . . . . . . . . . . . . . . . . . . . . 2 . . Garrison Access . | . . . . . . . . . . . . . . . . . . . . . . . . . Data Cores Recovered 1 | . . . . . . . . . . . . . . . . . . . . 1 . . . . Used . | . . . . . . . . . . . . . . . . . . . . . . . . . Hacking Detections 88 | . 2 . . 4 . 15 . 4 7 . 7 . . . . 4 3 8 7 4 7 10 6 . Full Trace Events 4 | . . . . . . . . . 1 . . . . . . . . 1 . . . 2 . . Feedback Events 1 | . . . . . . . . . . . . . . . . . . . . . . 1 . . Corruption 1 | . . . . . . . . . . . . . . . . . . . . . . 1 . . Feedback Blocked . | . . . . . . . . . . . . . . . . . . . . . . . . . Robot Schematics Acquired . | . . . . . . . . . . . . . . . . . . . . . . . . . Robots Built 2 | . . . . . . . . . . . 2 . . . . . . . . . . . . . Authchips . | . . . . . . . . . . . . . . . . . . . . . . . . . Time 50 | . . . . . . . . . . . 50 . . . . . . . . . . . . . Total Robot Build Rating 10 | . . . . . . . . . . . 10 . . . . . . . . . . . . . Part Schematics Acquired 28 | . . . . . . 2 . . . . 1 . . 4 . . . 6 1 . 1 13 . . Parts Built 8 | . . . . . . . . . . . . . . . . . 2 . . . 2 4 . . Authchips 1 | . . . . . . . . . . . . . . . . . . . . . 1 . . . Time 246 | . . . . . . . . . . . . . . . . . 69 . . . 69 108 . . Total Part Build Rating 68 | . . . . . . . . . . . . . . . . . 18 . . . 18 32 . . Part Studies Acquired 13 | . . . . . . 1 . 3 . . 3 . . . . . 3 1 1 . 1 . . . Parts Repaired 2 | . . . . . . . . . . . 1 . . . . . . . 1 . . . . . Time 93 | . . . . . . . . . . . 56 . . . . . . . 37 . . . . . Parts Recycled . | . . . . . . . . . . . . . . . . . . . . . . . . . Recycled Matter . | . . . . . . . . . . . . . . . . . . . . . . . . . Retrieved Matter . | . . . . . . . . . . . . . . . . . . . . . . . . . Retrieved Components 7 | . . . . . . 7 . . . . . . . . . . . . . . . . . . Parts Scanalyzed 4 | . . . . . . 2 . . . . . . . . . . . . 1 . 1 . . . Part Schematics Acquired 4 | . . . . . . 2 . . . . . . . . . . . . 1 . 1 . . . Parts Damaged 1 | . . . . . . . . . . . . . . . . . . . . . 1 . . . Bothacking | -11 -10 -10 -10 -8 -8 -6 -6 -6 -6 -6 -5 -5 -5 -5 -4 -4 -3 -3 -3 -2 -2 -1 -1 -1 ------------ Run | Yrd Mat Min Sub Rec Scr Fac Was Fac Ext Cet Fac Upp Upp Zhi Pro Fac Res Qua Sec Res Tes Acc Com Ac0 Used RIF Installer . | . . . . . . . . . . . . . . . . . . . . . . . . . Robots Hacked 1 | . . . . . . . . . . . . . . . . . . 1 . . . . . . Non-combat . | . . . . . . . . . . . . . . . . . . . . . . . . . Combat . | . . . . . . . . . . . . . . . . . . . . . . . . . Robot Hacks Applied . | . . . . . . . . . . . . . . . . . . . . . . . . . Manual 1 | . . . . . . . . . . . . . . . . . . 1 . . . . . . Relay Couplers Released 5 | . . . . . . 3 . . . . 2 . . . . . . . . . . . . . Machine Destruction 5 | . . . . . . 3 . . . . 2 . . . . . . . . . . . . . Fabnet Peak Effective % . | . . . . . . . . . . . . . . . . . . . . . . . . . Robots Rewired 18 | . . . . . . . . . 17 . 1 . . . . . . . . . . . . . Allies Hacked 4 | . . . . . . . . . . . 2 . . . . . . 1 . . 1 . . . Hacks Repelled . | . . . . . . . . . . . . . . . . . . . . . . . . . Allies | -11 -10 -10 -10 -8 -8 -6 -6 -6 -6 -6 -5 -5 -5 -5 -4 -4 -3 -3 -3 -2 -2 -1 -1 -1 -------- Run | Yrd Mat Min Sub Rec Scr Fac Was Fac Ext Cet Fac Upp Upp Zhi Pro Fac Res Qua Sec Res Tes Acc Com Ac0 Total Allies 64 | . . 4 . . . 1 19 . 23 . 3 . . . . . . 1 . . 1 1 11 . Largest Group 19 | . . 3 3 . . 1 19 13 11 11 2 . . . . . . 1 . . 1 1 6 . Highest-Rated Group 684 | . . 40 40 . . 10 684 484 296 291 82 . . . . . . 10 . . 26 45 323 . Highest-Rated Ally 159 | . . 31 16 . . 10 50 46 159 39 49 . . . . . . 10 . . 26 45 67 . Total Orders 13 | . . . . . . . . . 4 . . 3 5 . . . . . . . . . 1 . STAY 2 | . . . . . . . . . 1 . . . . . . . . . . . . . 1 . FOLLOW 4 | . . . . . . . . . 3 . . . 1 . . . . . . . . . . . EXPLORE 5 | . . . . . . . . . . . . 2 3 . . . . . . . . . . . RETURN 2 | . . . . . . . . . . . . 1 1 . . . . . . . . . . . Ally Attacks 380 | . . 12 7 . . . 114 65 51 19 9 . . . . . . . . . . . 103 . Total Damage 10816 | . . 170 70 . . . 4699 1533 1000 335 307 . . . . . . . . . . . 2702 . Kills 47 | . . 2 1 . . . 10 22 4 4 2 . . . . . . . . . . . 2 . Allies Corrupted 3 | . . . . . . . . 1 . . 1 . . . . . . 1 . . . . . . Allies Melted 2 | . . . . . . . . 2 . . . . . . . . . . . . . . . . Intel | -11 -10 -10 -10 -8 -8 -6 -6 -6 -6 -6 -5 -5 -5 -5 -4 -4 -3 -3 -3 -2 -2 -1 -1 -1 ------- Run | Yrd Mat Min Sub Rec Scr Fac Was Fac Ext Cet Fac Upp Upp Zhi Pro Fac Res Qua Sec Res Tes Acc Com Ac0 Active Infowar (turns) 17762 | . 635 1504 4143 . . 886 271 308 64 . 676 2 163 . 392 1306 1165 1771 1077 496 921 1157 284 541 Optics 1940 | . . . . . . . . . . . . . . . . . 241 1698 1 . . . . . Sensors 6103 | . 635 585 . . . . . . . . 540 . . . . . 209 1081 759 483 907 902 2 . A.S.S. 1494 | . . . . . . 886 271 308 29 . . . . . . . . . . . . . . . Terrain 3882 | . . . . . . . . . . . . . . . . . . 6 822 492 863 1157 1 541 Seismic 6398 | . . 919 4143 . . . . . . . 136 . . . . 1200 . . . . . . . . Jamming 4987 | . . . . . . . . . . . . 2 163 . 392 1306 1165 1193 269 . . 215 282 . ECM 1860 | . . . . . . . . . 49 . . . . . . 1 . 17 . 472 345 976 . . Robot Analysis Total 12 | . . . . . 6 1 . . 1 . . . . 4 . . . . . . . . . . Derelict Logs Recovered 9 | . . 1 1 . 2 . . . . . . 2 1 . 2 . . . . . . . . . Drone Launches 5 | . . . . . . . . . . . . 3 2 . . . . . . . . . . . Drone Recoveries 3 | . . . . . . . . . . . . 2 1 . . . . . . . . . . . Exploration | -11 -10 -10 -10 -8 -8 -6 -6 -6 -6 -6 -5 -5 -5 -5 -4 -4 -3 -3 -3 -2 -2 -1 -1 -1 ------------- Run | Yrd Mat Min Sub Rec Scr Fac Was Fac Ext Cet Fac Upp Upp Zhi Pro Fac Res Qua Sec Res Tes Acc Com Ac0 Turns Passed 32269 | 89 1166 1783 4839 1281 4324 2191 271 308 854 541 1194 565 702 201 508 1306 1165 1806 1136 496 921 1157 2133 1332 Spaces Moved 25442 | 54 562 815 1755 469 1689 2410 413 636 1066 357 636 393 412 150 365 834 723 1586 1403 843 1108 1684 2595 2484 Core 9 | 9 . . . . . . . . . . . . . . . . . . . . . . . . Treads 5654 | 45 562 815 1755 469 1689 319 . . . . . . . . . . . . . . . . . . Legs 4257 | . . . . . . 35 . . . 78 636 393 412 150 365 834 723 631 . . . . . . Wheels 283 | . . . . . . 283 . . . . . . . . . . . . . . . . . . Hover 10951 | . . . . . . . . . . 109 . . . . . . . 955 1300 843 1066 1656 2538 2484 Flight 4058 | . . . . . . 1773 413 636 1066 170 . . . . . . . . . . . . . . Fastest Speed 18 | 50 160 160 240 255 255 24 30 24 24 30 111 110 110 113 121 121 121 40 40 32 36 34 28 18 Average Speed 95 | 141 160 183 248 255 255 72 33 33 32 68 122 110 115 119 121 121 127 80 48 38 40 38 32 30 Slowest Speed 260 | 160 160 240 255 255 255 255 34 34 34 165 175 111 118 121 121 190 201 260 139 42 41 39 116 35 Overloaded Moves 123 | . . . . . . 17 . 44 41 . . . . . . . . . . . . . . 21 Propulsion Burnouts . | . . . . . . . . . . . . . . . . . . . . . . . . . Robots Hopped 21 | . . . . . . 10 . 3 7 1 . . . . . . . . . . . . . . Potential Cave-ins . | . . . . . . . . . . . . . . . . . . . . . . . . . Cave-ins Triggered . | . . . . . . . . . . . . . . . . . . . . . . . . . Teleports 4 | . . . . . . . . . . . . . . . . 1 . . 1 . . . 1 1 Spacefolds 30 | . . . . . . . . . . . . . . . . . . . . . 15 9 6 . Microwarps 8 | . . . . . . . . . . . . . . . . . . . 7 . . . 1 . Exploration Rate (%) 60 | 5 75 94 66 59 84 53 94 25 86 57 13 95 79 60 57 33 30 94 64 20 82 44 62 93 Regions Visited 24 Branch Regions 15 Pre-discovered Areas 12 | . . . 1 5 . 1 . . . . . 1 . 3 1 . . . . . . . . . Known Exits Taken 9 | . . . . . . . . 1 . 1 1 1 . . . 1 . 1 1 1 1 . . . Unknown Exits Taken 13 | 1 1 1 1 1 1 . . . 1 . . . 1 1 1 . 1 . . . . 1 1 . Scrap Searched 13 | . . 1 3 . 2 . . . . . . 2 3 . 2 . . . . . . . . . Spaces Dug 326 | . . 5 36 6 . 36 . 8 . . 7 1 . . 61 34 29 24 13 17 15 21 6 7 Terrain Destroyed 611 | . . 16 108 8 . 65 . 8 . . 7 75 . . 106 75 33 24 15 17 15 21 6 12 Melee 192 | . . . . . . 32 . 8 . . 5 1 . . 10 24 17 21 11 17 14 20 6 6 Projectile 44 | . . 1 14 8 . 6 . . . . 2 . . . . 4 . 3 4 . 1 1 . . AOE 369 | . . 15 94 . . 27 . . . . . 74 . . 96 47 16 . . . . . . . Terrain Rammed . | . . . . . . . . . . . . . . . . . . . . . . . . . Walls Destroyed . | . . . . . . . . . . . . . . . . . . . . . . . . . Machines Disabled . | . . . . . . . . . . . . . . . . . . . . . . . . . Actions | -11 -10 -10 -10 -8 -8 -6 -6 -6 -6 -6 -5 -5 -5 -5 -4 -4 -3 -3 -3 -2 -2 -1 -1 -1 --------- Run | Yrd Mat Min Sub Rec Scr Fac Was Fac Ext Cet Fac Upp Upp Zhi Pro Fac Res Qua Sec Res Tes Acc Com Ac0 Total 31904 | 64 698 1061 2139 520 1717 2725 541 714 1515 628 953 500 637 172 403 1027 920 1957 1743 974 1515 2142 3696 2943 Wait 4061 | . 56 181 246 32 . 147 119 66 325 210 217 71 220 . 2 78 121 133 253 38 289 366 845 46 Move 25185 | 53 561 814 1754 468 1688 2390 412 630 1051 354 635 392 411 149 364 833 722 1585 1306 842 1080 1664 2544 2483 Hop 20 | . . . . . . 10 . 2 7 1 . . . . . . . . . . . . . . Pick Up 201 | 5 4 11 10 2 11 13 1 2 2 9 4 2 . 2 2 14 12 19 12 3 9 7 24 21 Fast Attach 200 | 5 1 1 1 . 1 17 1 . 1 7 5 3 . 6 . 2 4 18 29 17 20 17 29 15 Attach 153 | 1 1 1 1 . 1 17 1 . 1 8 4 4 . 1 7 12 8 21 18 2 9 4 11 20 Detach 134 | . . 2 . . 2 14 2 . 1 5 2 2 . . 4 9 9 12 17 6 9 6 18 14 Swap 230 | . 6 12 42 2 . 2 2 . 2 . 11 2 3 3 . 5 1 22 10 7 19 12 25 42 Drop 274 | . 1 10 8 . 14 19 1 2 3 9 2 6 2 10 2 1 5 26 27 15 30 27 37 17 Fire 321 | . 63 28 75 14 . 9 . . 6 . 2 9 . . 7 10 7 13 14 . 1 1 24 38 Melee 1033 | . . . . . . 72 2 12 51 25 70 9 . 1 15 63 31 108 57 44 49 38 139 247 Ram . | . . . . . . . . . . . . . . . . . . . . . . . . . Kick . | . . . . . . . . . . . . . . . . . . . . . . . . . Crush 8 | . 5 1 . 2 . . . . . . . . . . . . . . . . . . . . Escape Stasis 15 | . . . . . . 15 . . . . . . . . . . . . . . . . . . Rewire 66 | . . . . . . . . . 65 . 1 . . . . . . . . . . . . . Trap 2 | . . . 2 . . . . . . . . . . . . . . . . . . . . . Miscellaneous 1 | . . . . . . . . . . . . . 1 . . . . . . . . . . . Route ------- -11/Scrapyard -10/Materials (discovered 5 exits: [*Mat x3] / *Min x2) -10/Mines (discovered 4 exits: [*Mat x2] / [*Exi] / *Sub) -10/Subcaves (discovered 3 exits: *Mat x2 / *Rec) -8/Recycling -8/Scraptown (discovered 2 exits: *Fac x2) -6/Factory (discovered 4 exits: Low x2 / Ext x2) -6/Waste -6/Factory (discovered 6 exits: *Fac x2 / *Low x2 / *Ext x2) -6/Extension (discovered 2 exits: *Fac / *Cet) -6/Cetus (discovered 2 exits: *Fac / [*Arc]) -5/Factory (discovered 2 exits: *Upp x2) -5/Upper Caves -5/Upper Caves -5/Zhirov -4/Proximity Caves -4/Factory (discovered 3 exits: *Res x3) -3/Research (discovered 4 exits: Res x2 / Arm / *Qua) -3/Quarantine (discovered 2 exits: *Sec / [*Frg]) -3/Section 7 -2/Research -2/Testing -1/Access (discovered 2 exits: [Sur] / *Com) -1/Command (discovered 3 exits: [*Sur x2] / *Ac0) -1/Access_0 To Fleet Rendezvous History --------- Turn | Location | Event 4 | -11/Scrapyard | Discovered new exit (range 15) 90 | -11/Scrapyard | Entered Materials 301 | -10/Materials | Build established: Mutant 336 | -10/Materials | Discovered new exit (range 5) 596 | -10/Materials | Discovered new exit (range 16) 747 | -10/Materials | Discovered new exit (range 9) 871 | -10/Materials | Discovered new exit (range 13) 1067 | -10/Materials | Discovered new exit (range 14) 1190 | -10/Materials | Derelicts attacked the area 1256 | -10/Materials | Entered Mines 1262 | -10/Mines | Met a Derelict who couldn't figure out how to use a Trap Extractor 1459 | -10/Mines | Received a Mining Laser from a helpful Derelict 1558 | -10/Mines | A weapon hastily lodged in a ceiling crevice suddenly fell to the ground 1579 | -10/Mines | Received a Rocket Launcher from a helpful Derelict 1657 | -10/Mines | Joined a pair of Derelicts in attacking an 0b10 outpost 1731 | -10/Mines | Excavation squad dispatched 1731 | -10/Mines | A large section of the Mines collapsed 1944 | -10/Mines | Discovered new exit (range 9) 2205 | -10/Mines | Learned 2 Materials zone layouts 2222 | -10/Mines | Discovered new exit (range 8) 2364 | -10/Mines | Deemed a non-threat by the Exiles lab entrance 2364 | -10/Mines | Discovered new exit (range 5) 2398 | -10/Mines | Build established: Scavenger-Mutant 2766 | -10/Mines | Build established: Mutant 2768 | -10/Mines | Assisted by bots powering up and referring to "LRC-V3" 3022 | -10/Mines | Discovered new exit (range 6) 3039 | -10/Mines | Entered Subcaves 3039 | -10/Subcaves | Accompanied by 3 allies 3187 | -10/Subcaves | Shifting Twisted Machinery released Sub. Laser 3426 | -10/Subcaves | Core integrity fell below 50% 4156 | -10/Subcaves | Build established: Scavenger-Mutant 4210 | -10/Subcaves | Ambushed by Subdweller buried in earth 4260 | -10/Subcaves | Discovered new exit (range 15) 5516 | -10/Subcaves | Identified exit to Materials 5668 | -10/Subcaves | A swath of the cavern ceiling suddenly collapsed 6028 | -10/Subcaves | Discovered exit to Materials (range 6) 6245 | -10/Subcaves | Visited 4L-MR0's lab 6275 | -10/Subcaves | Found Flightbrick 6391 | -10/Subcaves | Build established: Mutant 6428 | -10/Subcaves | Core integrity fell below 20% 7204 | -10/Subcaves | Visited Clippyterm 7211 | -10/Subcaves | Learned location of Section 7 (-3) 7751 | -10/Subcaves | Ambushed by angry Subdweller bent on revenge 7878 | -10/Subcaves | Entered Recycling 9093 | -8/Recycling | Scanned before Scraplab entrance 9131 | -8/Recycling | Entered Scraplab 9152 | -8/Recycling | Discovered new exit (range 3) 9159 | -8/Recycling | Entered Scraptown 9761 | -8/Scraptown | Discovered new exit (range 13) 10042 | -8/Scraptown | Visited CR-KLE's Repair Center 10060 | -8/Scraptown | Visited IN-MT5's Study 10103 | -8/Scraptown | Visited UFD Registry 10103 | -8/Scraptown | Registered with UFD as "Flashhead" 10205 | -8/Scraptown | Visited Curators Association 10271 | -8/Scraptown | Visited Supply Room 10307 | -8/Scraptown | Visited Research Penetration Think Tank 10363 | -8/Scraptown | Visited Analyses Database 10406 | -8/Scraptown | Visited Sword Containment 10457 | -8/Scraptown | Visited Infowarlord's Domain 10501 | -8/Scraptown | Visited Science Testing Area 10544 | -8/Scraptown | Visited Science Guys 10959 | -8/Scraptown | Delivered Scrap Shield to a Scientist 11318 | -8/Scraptown | Scanned Subdweller tech in exchange for log data 11326 | -8/Scraptown | Learned 8 Research zone layouts 11328 | -8/Scraptown | Learned Research emergency access door positions 11448 | -8/Scraptown | CR-KLE repaired 6 parts 12239 | -8/Scraptown | Found Active Sensor Suite 12312 | -8/Scraptown | Found Prototype Slashing Weapon 12312 | -8/Scraptown | Identified Companion Sword 13351 | -8/Scraptown | Met Optimus 13351 | -8/Scraptown | Accepted into 0bPrime 13476 | -8/Scraptown | Discovered new exit (range 3) 13483 | -8/Scraptown | Entered Factory 13483 | -6/Factory | Evolved 8 slots: Propulsion x4, Utility x4 13577 | -6/Factory | Loaded intel: 8 recycling unit locations 13785 | -6/Factory | Build established: Hacker-Mutant 14052 | -6/Factory | Identified exit to Lower Caves 14052 | -6/Factory | Identified exit to Extension 14735 | -6/Factory | Cargo convoy interrupted 14788 | -6/Factory | Attached Flightbrick, gained temporary slots: Utility x3 14845 | -6/Factory | Learned location of Protoforge (-3) 15092 | -6/Factory | Build established: Hacker-Scout 15233 | -6/Factory | Search patrols dispatched 15583 | -6/Factory | Search patrols dispatched 15674 | -6/Factory | Sucked down chute 15674 | -6/Factory | Entered Waste 15690 | -6/Waste | Spotted C-40 Crusher 15694 | -6/Waste | Spotted C-40 Crusher 15706 | -6/Waste | Spotted C-40 Crusher 15723 | -6/Waste | Spotted C-40 Crusher 15727 | -6/Waste | Spotted C-40 Crusher 15743 | -6/Waste | Spotted C-40 Crusher 15743 | -6/Waste | Discovered new exit (range 13) 15748 | -6/Waste | Warlord forces began an assault 15755 | -6/Waste | Allies destroyed C-40 Crusher 15765 | -6/Waste | Allies destroyed C-40 Crusher 15767 | -6/Waste | Allies destroyed C-40 Crusher 15777 | -6/Waste | Allies destroyed C-40 Crusher 15778 | -6/Waste | Allies destroyed C-40 Crusher 15808 | -6/Waste | Lost 4 allies 15887 | -6/Waste | Identified exit to Factory 15945 | -6/Waste | Entered Factory 15945 | -6/Factory | Accompanied by 13 allies 16035 | -6/Factory | Discovered new exit (range 14) 16039 | -6/Factory | Discovered new exit (range 6) 16043 | -6/Factory | Identified exit to Factory 16048 | -6/Factory | Loaded intel: 8 recycling unit locations 16068 | -6/Factory | Spotted B-75 Beast 16253 | -6/Factory | Entered Extension 16281 | -6/Extension | Rescued a captive Derelict 16313 | -6/Extension | Rescued a captive Derelict 16364 | -6/Extension | Lost 3 allies 16378 | -6/Extension | Rescued a captive Derelict 16452 | -6/Extension | Rescued A7 16659 | -6/Extension | Spotted B-75 Beast 16684 | -6/Extension | Spotted B-75 Beast 16698 | -6/Extension | Allies destroyed B-75 Beast 16701 | -6/Extension | Found Prototype Protection 16707 | -6/Extension | Extracted ID and sensor layout for unrecognized location from A7's data core 16736 | -6/Extension | Lost 4 allies 16870 | -6/Extension | Loaded intel: 2 recycling unit locations 16974 | -6/Extension | Lost 3 allies 17027 | -6/Extension | Discovered exit to Factory (range 10) 17027 | -6/Extension | Discovered new exit (range 6) 17107 | -6/Extension | Entered Cetus 17107 | -6/Cetus | Accompanied by 11 allies 17149 | -6/Cetus | Spotted Cetus Guard 17150 | -6/Cetus | Spotted Cetus Guard 17150 | -6/Cetus | Spotted Cetus Guard 17152 | -6/Cetus | Allies destroyed Cetus Guard 17152 | -6/Cetus | Allies destroyed Cetus Guard 17163 | -6/Cetus | Destroyed Cetus Guard 17191 | -6/Cetus | Lost 4 allies 17191 | -6/Cetus | Discovered new exit (range 16) 17293 | -6/Cetus | Spotted Cetus Guard 17293 | -6/Cetus | Spotted Cetus Guard 17293 | -6/Cetus | Spotted Cetus Guard 17293 | -6/Cetus | Spotted Cetus Guard 17333 | -6/Cetus | Lost 5 allies 17365 | -6/Cetus | Core integrity fell below 50% 17367 | -6/Cetus | Destroyed Cetus Guard 17375 | -6/Cetus | Destroyed Cetus Guard 17379 | -6/Cetus | Identified Med. Regenerative Plating 17392 | -6/Cetus | Core integrity fell below 20% 17403 | -6/Cetus | Destroyed Cetus Guard 17430 | -6/Cetus | Lost 7 parts (2p3n2u) 17450 | -6/Cetus | Discovered exit to Factory (range 15) 17458 | -6/Cetus | Met Revision 17 17648 | -6/Cetus | Entered Factory 17648 | -5/Factory | Evolved 2 slots: Power x1, Utility x1 17780 | -5/Factory | Identified exit to Upper Caves 17831 | -5/Factory | Build established: Scavenger-Mutant 18258 | -5/Factory | Lost 3 parts (2n1u) 18676 | -5/Factory | Fabricated H-66 Slayer (x2) 18792 | -5/Factory | Repaired Med. Armored Exoskeleton+ 18842 | -5/Factory | Entered Upper Caves 18844 | -5/Upper Caves | UFD Scientist delivered a prototype 18847 | -5/Upper Caves | Found Prototype Protection 18847 | -5/Upper Caves | Identified Enh. Scrap Shield 19055 | -5/Upper Caves | Learned location of Armory (-3) 19068 | -5/Upper Caves | Identified exit to Upper Caves 19145 | -5/Upper Caves | Build established: Hacker-Mutant 19324 | -5/Upper Caves | Attracted the attention of an 0b10 checkpoint 19407 | -5/Upper Caves | Entered another Upper Caves area 19539 | -5/Upper Caves | Discovered new exit (range 15) 19783 | -5/Upper Caves | Encountered a Warlord checkpoint 19870 | -5/Upper Caves | Learned 4 Factory zone layouts 20109 | -5/Upper Caves | Entered Zhirov 20109 | -5/Zhirov | Accompanied by 1 ally 20109 | -5/Zhirov | Discovered new exit (range 3) 20131 | -5/Zhirov | Met Zhirov 20153 | -5/Zhirov | Learned location of Quarantine (-3) 20153 | -5/Zhirov | Learned location of Testing (-2) 20153 | -5/Zhirov | Learned location of Command (-1) 20164 | -5/Zhirov | Zhirov requested help retrieving the SGEMP Prototype 20183 | -5/Zhirov | Found Alien Artifact 20183 | -5/Zhirov | Identified Integrated Dissipator 20183 | -5/Zhirov | Installed Integrated Dissipator, increased core heat dissipation (+20) 20259 | -5/Zhirov | Found Alien Artifact 20310 | -5/Zhirov | Entered Proximity Caves 20426 | -4/Proximity Caves | Spotter reported a threat 20515 | -4/Proximity Caves | Learned 8 Research zone layouts 20743 | -4/Proximity Caves | Spotted B-86 Titan 20801 | -4/Proximity Caves | Discovered new exit (range 12) 20818 | -4/Proximity Caves | Entered Factory 20818 | -4/Factory | Evolved 2 slots: Utility x2 20819 | -4/Factory | Identified exit to Research 20897 | -4/Factory | Loaded intel: 8 recycling unit locations 21068 | -4/Factory | Search patrols dispatched 21526 | -4/Factory | Found Prototype Device 21828 | -4/Factory | Discovered exit to Research (range 11) 21907 | -4/Factory | Identified Exp. ECM Suite 22073 | -4/Factory | Identified Transdimensional Reconstructor 22073 | -4/Factory | Warped through subspace 22103 | -4/Factory | Discovered exit to Research (range 16) 22109 | -4/Factory | Lost 3 parts (1p1u1w) 22115 | -4/Factory | System corruption reached 10% 22124 | -4/Factory | Entered Research 22124 | -3/Research | Evolved 2 slots: Utility x2 22125 | -3/Research | Identified exit to Armory 22125 | -3/Research | Identified exit to Research 22324 | -3/Research | Revision forces began assault on 0b10 22336 | -3/Research | Met up with Revision 17++ 22431 | -3/Research | Spotted B-86 Titan 22496 | -3/Research | Lost 3 allies 22587 | -3/Research | Lost 4 allies 22603 | -3/Research | Fabricated Cmb. Linear Gravjet? 22824 | -3/Research | Research terminal network offline 22909 | -3/Research | Found Exp. Sensor Array 23021 | -3/Research | Spotted B-86 Titan 23048 | -3/Research | Found Spectral Analyzer 23132 | -3/Research | Found Prototype Processor 23264 | -3/Research | Discovered new exit (range 8) 23289 | -3/Research | Entered Quarantine 23309 | -3/Quarantine | Lost 3 allies 23589 | -3/Quarantine | Found Alien Artifact 23931 | -3/Quarantine | Found Alien Impact Weapon 24072 | -3/Quarantine | Identified Exp. Target Analyzer 24119 | -3/Quarantine | Found Alien Slashing Weapon 24283 | -3/Quarantine | System corruption reached 10% 24316 | -3/Quarantine | Lost 3 parts (1p2n) 24376 | -3/Quarantine | Lost 5 parts (3n2u) 24565 | -3/Quarantine | Cryocooling Duct disabled 24580 | -3/Quarantine | Ambient heat levels rising (+20) 24580 | -3/Quarantine | Non-combat units ordered to evacuate 24698 | -3/Quarantine | Found Alien Artifact 24831 | -3/Quarantine | System corruption reached 30% 24840 | -3/Quarantine | Forged Quantum Companion 24871 | -3/Quarantine | Lost 8 parts (2p5n1u) 24881 | -3/Quarantine | Identified Subatomic Replicator 24881 | -3/Quarantine | Forged Prototype Slashing Weapon 24949 | -3/Quarantine | Discovered exit to Research (range 10) 25020 | -3/Quarantine | Found Alien Artifact 25022 | -3/Quarantine | Found Alien Artifact 25029 | -3/Quarantine | Found Alien Artifact 25056 | -3/Quarantine | Spotted Fortress 25086 | -3/Quarantine | Discovered new exit (range 6) 25086 | -3/Quarantine | Discovered new exit (range 7) 25089 | -3/Quarantine | Identified exit to Section 7 25089 | -3/Quarantine | Identified Core Reset Matrix 25089 | -3/Quarantine | Identified Dimensional Node Initializer 25089 | -3/Quarantine | Identified Sigix Broadsword 25089 | -3/Quarantine | Identified Hpw. Transdimensional Reconstructor (x2) 25089 | -3/Quarantine | Identified Core Stripper 25089 | -3/Quarantine | Used Core Reset Matrix 25093 | -3/Quarantine | Detected hypermatrix surge 25093 | -3/Quarantine | Sensed 7 artifacts in vicinity 25095 | -3/Quarantine | Entered Section 7 25096 | -3/Section 7 | Detected hypermatrix surge 25096 | -3/Section 7 | Sensed 23 artifacts in vicinity 25107 | -3/Section 7 | Found Integrity Redistributor 25138 | -3/Section 7 | Spotted S7 Guard 25164 | -3/Section 7 | Found Core Regenerator 25254 | -3/Section 7 | Core integrity fell below 50% 25289 | -3/Section 7 | Found Integrated Reactor 25289 | -3/Section 7 | Installed Integrated Reactor, increased core energy generation (+10) 25304 | -3/Section 7 | Found Integrated Dissipator 25304 | -3/Section 7 | Installed Integrated Dissipator, increased core heat dissipation (+20) 25367 | -3/Section 7 | Attached CPS modules to S7 Guard. 25391 | -3/Section 7 | Destroyed S7 Guard 25402 | -3/Section 7 | Found Prototype Protection 25415 | -3/Section 7 | Lost 4 parts (3n1u) 25497 | -3/Section 7 | Identified Hvy. Regenerative Plating 25646 | -3/Section 7 | Found Microwarp Drive 25725 | -3/Section 7 | Spotted S7 Guard 25729 | -3/Section 7 | Found Core Physics Calibrator 25859 | -3/Section 7 | Build established: Scavenger-Scout 25931 | -3/Section 7 | Repaired Cmb. Linear Gravjet 26015 | -3/Section 7 | Found Spacefold Activator 26018 | -3/Section 7 | Discovered exit to Research (range 11) 26022 | -3/Section 7 | Initialized slip node 26098 | -3/Section 7 | Central database locked down 26131 | -3/Section 7 | Spotted B-99 Colossus 26157 | -3/Section 7 | Found LRC Energy Well 26157 | -3/Section 7 | Installed LRC Energy Well, increased energy storage capacity (+250) 26161 | -3/Section 7 | Found LRC Energy Well 26161 | -3/Section 7 | Installed LRC Energy Well, increased energy storage capacity (+250) 26221 | -3/Section 7 | Found Transdimensional Reconstructor 26222 | -3/Section 7 | Warped through subspace to slip node 26225 | -3/Section 7 | Found Transdimensional Reconstructor 26231 | -3/Section 7 | Entered Research 26231 | -2/Research | Evolved 2 slots (calibrated): Propulsion x2, Utility x1, -Weapon x1 26368 | -2/Research | Discovered new exit (range 24) 26528 | -2/Research | Build established: Scavenger-Ninja 26631 | -2/Research | Identified exit to Testing 26682 | -2/Research | Found Prototype Device 26682 | -2/Research | Identified Exp. EM Disruption Field 26727 | -2/Research | Entered Testing 26831 | -2/Testing | Found Prototype Energy Gun 26831 | -2/Testing | Identified Tachyon Dispersion Ray 26847 | -2/Testing | Found Prototype Energy Gun 26847 | -2/Testing | Identified Hyp. EM Gauss Rifle 26904 | -2/Testing | Found Prototype Processor 26981 | -2/Testing | Identified Exp. Signal Interpreter 27055 | -2/Testing | Destroyed PX-L0APHINCIN 27112 | -2/Testing | Discovered new exit (range 15) 27118 | -2/Testing | Identified exit to Access 27122 | -2/Testing | Found Prototype Device 27122 | -2/Testing | Identified Exp. Thermal Defense Suite 27152 | -2/Testing | Found Prototype Ballistic Cannon 27168 | -2/Testing | Found Prototype Launcher 27168 | -2/Testing | Identified Mni. Smartbomb Launcher 27187 | -2/Testing | Found Prototype Device 27187 | -2/Testing | Identified Exp. Hardlight Generator 27333 | -2/Testing | Found Prototype Ballistic Gun 27334 | -2/Testing | Identified Hyp. Multirail 27452 | -2/Testing | Build established: Alien-Scout 27610 | -2/Testing | Fabricated Cmb. Linear Gravjet? 27645 | -2/Testing | Core integrity fell below 50% 27648 | -2/Testing | Entered Access 27648 | -1/Access | Evolved 2 slots: Utility x2 27856 | -1/Access | Fabricated Graphene Brace? 27929 | -1/Access | Build established: Alien-Ninja 28050 | -1/Access | Fabricated Cmb. Linear Gravjet (x2) 28366 | -1/Access | Discovered new exit (range 24) 28627 | -1/Access | Found Prototype Processor 28627 | -1/Access | Identified Exp. Terrain Scan Processor 28632 | -1/Access | Discovered new exit (range 15) 28805 | -1/Access | Entered Command 28827 | -1/Command | Build established: Alien-Mutant 28889 | -1/Command | Used Core Regenerator, restored core integrity (+400) 29096 | -1/Command | Spotted M Guard 29096 | -1/Command | Spotted M Guard 29096 | -1/Command | Spotted Combat Programmer 29096 | -1/Command | Spotted Combat Programmer 29128 | -1/Command | Destroyed Combat Programmer 29136 | -1/Command | Destroyed Combat Programmer 29148 | -1/Command | Found Prototype Device 29148 | -1/Command | Identified Exp. Focal Shield 29245 | -1/Command | Destroyed M Guard 29269 | -1/Command | Destroyed M Guard 29269 | -1/Command | All MAIN.C guards destroyed 29276 | -1/Command | Found Corrupted Prototype Reactor 29334 | -1/Command | Identified Zero-point Reactor 29335 | -1/Command | System corruption reached 10% 29336 | -1/Command | Found Corrupted Hvy. Regenerative Plating 29340 | -1/Command | Found Corrupted Prototype Device 29340 | -1/Command | Identified AEGIS Remote Shield 29362 | -1/Command | Found Prototype Processor 29362 | -1/Command | Identified Exp. Target Analyzer 29370 | -1/Command | Destroyed 7 combat bots 29432 | -1/Command | Found Corrupted AEGIS Remote Shield 29434 | -1/Command | Found Corrupted Zero-point Reactor 29531 | -1/Command | Scrapoids reinforcements arrived? 29572 | -1/Command | System corruption reached 30% 29595 | -1/Command | Used Integrity Redistributor, redistributed integrity from core (-324) 29596 | -1/Command | Core integrity fell below 50% 29678 | -1/Command | Build established: Alien-Sprinter 29709 | -1/Command | Met MAIN.C 29709 | -1/Command | 0b10 Conduit disabled 29727 | -1/Command | Allies destroyed MAIN.C Shell 29728 | -1/Command | MAIN.C activated Command garrisons 29754 | -1/Command | Destroyed MAIN.C 29756 | -1/Command | Discovered new exit (range 41) 29756 | -1/Command | Discovered new exit (range 88) 29756 | -1/Command | Extracted map data and part IDs from MAIN.C's data core 29760 | -1/Command | Found Exp. Powered Armor 29799 | -1/Command | Found Zero-point Reactor 29806 | -1/Command | Found Exp. Powered Armor 29813 | -1/Command | Murdered 4 allies 29844 | -1/Command | Found Exp. System Purifier 30131 | -1/Command | Build established: Scavenger-Mutant 30291 | -1/Command | Found Zero-point Reactor 30297 | -1/Command | Found Exp. Melee Analysis Suite 30831 | -1/Command | Found Exp. Core Analyzer 30869 | -1/Command | Found Adv. Force Booster 30912 | -1/Command | Warped through subspace to slip node 30912 | -1/Command | Discovered new exit (range 4) 30913 | -1/Command | Emitted hypermatrix ping 30918 | -1/Command | Assembled emerged from beneath the floor 30938 | -1/Command | Entered Access_0 30939 | -1/Access_0 | Sensed 4 artifacts in vicinity 30939 | -1/Access_0 | Met Architect 30950 | -1/Access_0 | Destroyed A8 30951 | -1/Access_0 | Architect warped through subspace 30962 | -1/Access_0 | Murdered 6 allies 30985 | -1/Access_0 | Architect warped through subspace 30991 | -1/Access_0 | Subspace Access Node disabled 31022 | -1/Access_0 | Architect warped through subspace 31035 | -1/Access_0 | Found Core Expander 31035 | -1/Access_0 | Installed Core Expander, added new Propulsion slot 31077 | -1/Access_0 | Architect warped through subspace 31079 | -1/Access_0 | Found Exp. Phase Shifter 31081 | -1/Access_0 | Found Exp. Phase Shifter 31086 | -1/Access_0 | A6 warped into view 31106 | -1/Access_0 | Destroyed A6 31111 | -1/Access_0 | Found Corrupted Femtoactuators 31133 | -1/Access_0 | Build established: Scavenger-Sprinter 31164 | -1/Access_0 | Architect warped through subspace 31180 | -1/Access_0 | Found Exp. Core Analyzer 31196 | -1/Access_0 | Architect warped through subspace 31198 | -1/Access_0 | Subspace Access Node disabled 31218 | -1/Access_0 | Architect warped through subspace 31254 | -1/Access_0 | Architect warped through subspace 31262 | -1/Access_0 | Lost 3 parts (2n1u) 31266 | -1/Access_0 | A5 warped into view 31279 | -1/Access_0 | Architect warped through subspace 31294 | -1/Access_0 | Destroyed A5 31304 | -1/Access_0 | Subspace Access Node disabled 31309 | -1/Access_0 | Core integrity fell below 20% 31316 | -1/Access_0 | Architect warped through subspace 31335 | -1/Access_0 | Found Core Regenerator 31335 | -1/Access_0 | Used Core Regenerator, restored core integrity (+400) 31350 | -1/Access_0 | Architect warped through subspace 31373 | -1/Access_0 | Found Integrated Dissipator 31373 | -1/Access_0 | Installed Integrated Dissipator, increased core heat dissipation (+20) 31381 | -1/Access_0 | Architect warped through subspace 31410 | -1/Access_0 | Architect warped through subspace 31438 | -1/Access_0 | Architect warped through subspace 31459 | -1/Access_0 | Destroyed A2 31460 | -1/Access_0 | Extracted Singularity Gate Test 138-C access codes from A2's data core 31460 | -1/Access_0 | Singularity Gate disabled 31463 | -1/Access_0 | Architect warped through subspace 31494 | -1/Access_0 | A4 warped into view 31505 | -1/Access_0 | Destroyed A4 31525 | -1/Access_0 | Subspace Access Node disabled 31545 | -1/Access_0 | Destroyed Architect 31545 | -1/Access_0 | Found Prototype Protection 31546 | -1/Access_0 | Extracted unknown sensor trigger ID from Architect's data core 31551 | -1/Access_0 | Found Zero-point Reactor 31555 | -1/Access_0 | Found Prototype Hackware 31556 | -1/Access_0 | Found Prototype Hackware 31558 | -1/Access_0 | Found Prototype Hackware 31559 | -1/Access_0 | Found Prototype Hackware 31562 | -1/Access_0 | Identified Centrium Linked Plating 31564 | -1/Access_0 | Found Centrium Linked Plating 31744 | -1/Access_0 | Found Prototype Device 31744 | -1/Access_0 | Identified Desublimator 31753 | -1/Access_0 | Found Exp. Phase Shifter 31760 | -1/Access_0 | Identified Architect God Chip A (x2) 31764 | -1/Access_0 | Identified Architect God Chip D (x2) 31882 | -1/Access_0 | Found Sigix Corpse 31937 | -1/Access_0 | Found Prototype Device 31937 | -1/Access_0 | Identified Thermal Barrier 31941 | -1/Access_0 | Found Exp. Core Analyzer 31988 | -1/Access_0 | Found Hpw. Transdimensional Reconstructor 32003 | -1/Access_0 | A3 warped into view 32011 | -1/Access_0 | Destroyed A3 32095 | -1/Access_0 | Found Hpw. Transdimensional Reconstructor 32106 | -1/Access_0 | Found Centrium Linked Plating 32216 | -1/Access_0 | Build established: Alien-Sprinter 32266 | -1/Access_0 | Warped through subspace to slip node 32266 | -1/Access_0 | Discovered new exit (range 8) 32270 | *** | Heading to fleet! Last Messages --------------- 32179_ Superquantum Companion surprise attacks Enhanced Grunt. 32179_ Enhanced Grunt destroyed. 32181_ Acquired 7 matter. 32190_ :RQQK#GYX31XMIRJS/O:U5TWGH A 32237_ HV Slug penetrates Earth. 32241_ Hyp. Multirail displaced. Superquantum Companion materializes via a weapon slot. Superquantum Companion: "Equip me like you mean it." 32241_ Acquired Hyp. Multirail. Superquantum Companion releases a shadow of itself that zips off towards Enhanced Grunt. 32249_ Superquantum Companion surprise attacks Enhanced Grunt. 32251_ Enhanced Grunt destroyed. 32251_ Superquantum Companion surprise attacks Enhanced Grunt. 32255_ Redirected attack with Superquantum Companion. 32255_ Enhanced Grunt destroyed. 32256_ Acquired 22 matter. 32262_ Enhanced Grunt destroyed. 32266_ Warped through subspace, drawn to slip node. 32266_ EXIT=FOUND Map ----- +----------------------------------------------------+ | | | | | | | | | | | | | | | | | | | | | | | | | | | | | | | | | ?????????????????????????????????????????????????? | | ?????????????????????????????????????????????????? | | ?????????????????????????????????????????????????? | | ?????????????????????????????????????????????????? | | ?????????????????????????????????????????????????? | | ?????????????????????????????????????????????????? | | ????????????????????????###??????????????????????? | | ???????????????????????## ##?????????????????????? | | ???????????????????????# #?????????????????????? | | ???????????????????????# @ #?????????????????????? | | ??????????????????????## #?????????????????????? | | ??????????????????????# #?????????????????????? | | ??????????????????????# ##?????????????????????? | | ??????????????????????## #?????????????????????? | | ??????????????????????# #?????????????????????? | | ??????????????????????# ##?????????????????????? | | ??????????????????????# < #?????????????????????? | | ??????????????????????# ##?????????????????????? | | ??????????????????????## #??????????????????????? | | ???????????????????????####??????????????????????? | | ?????????????????????????????????????????????????? | | ?????????????????????????????????????????????????? | | ?????????????????????????????????????????????????? | | ?????????????????????????????????????????????????? | | ?????????????????????????????????????????????????? | | ?????????????????????????????????????????????????? | | ?????????????????????????????????????????????????? | | ?????????????????????????????????????????????????? | | ?????????????????????????????????????????????????? | | ?????????????????????????????????????????????????? | | ?#???????????????????????????????????????????????? | | #?#??????????????????????????????????????????????? | | #????????????????????????????????????????????????? | | #??#?????????????????????????????????????????????? | +----------------------------------------------------+ Best States ------------- Heat Dissipation 112 Energy Generation 110 Energy Capacity 1690 Matter Stores 300 Matter Capacity 400 Sight Range 24 Robot Scan Range 20 Terrain Scan Range 24 Terrain Scan Density 1010 ECM Strength 3 Jamming Range 16 Power Amplification 70 Additional Mass Support 25 Corruption Containment 8 Corruption Block 8 Armor Coverage 1225 Resistance: KI 30 Resistance: TH 25 Core Shielding 20 Power Shielding 66 Utility Shielding 66 Point Defense Rating 400 Melee Speed Boost 50 Phase Shifting 20 Evasion (%) 93 Melee Accuracy 28 Target Analysis 6 Core Analysis 12 Armor Integrity Analysis 40 Recoil Reduction 4 Matter Filtering 50 Force Boost 40 Offensive Hacking 32 Defensive Hacking 14 Authchip Count 1 Item Schematics ----------------- CPS Tube | -3/Section 7 | Scanalyzed Cmb. Linear Gravjet | -2/Testing | Scanalyzed Focal Shield | -1/Access | Extracted Hcp. Storage Unit | -1/Access | Extracted Adv. Point Defense System | -1/Access | Extracted Graphene Brace | -1/Access | Extracted Adv. Thermal Generator | -1/Access | Extracted Hvy. Gauss Cannon | -1/Access | Extracted Gamma Bomb Array | -1/Access | Extracted Exp. Thermal Shield | -1/Access | Extracted Enh. Nova Cannon | -1/Access | Extracted Adv. Datajack | -1/Access | Extracted Imp. Hacking Suite | -1/Access | Extracted Cld. Antigrav System | -1/Access | Extracted Hvy. Shield Leg | -1/Access | Extracted Robot Schematics ------------------ None Fabricated ------------ H-66 Slayer | x2 | -5/Factory | Preloaded Cmb. Linear Gravjet | x2 | -3/Research | Preloaded Cmb. Linear Gravjet | x2 | -2/Testing | Authchip Graphene Brace | x2 | -1/Access Cmb. Linear Gravjet | x2 | -1/Access | Preloaded Repaired ---------- Med. Armored Exoskeleton | 58% | -5/Factory Cmb. Linear Gravjet | 20% | -3/Section 7 Studied --------- Cmb. Linear Gravjet | -3/Section 7 | Hacked Imp. Antigrav System | -2/Testing | Hacked Alien Tech Used ----------------- Integrated Dissipator Transdimensional Reconstructor Subatomic Replicator Core Reset Matrix Integrated Reactor Dimensional Node Initializer Microwarp Drive LRC Energy Well High-powered Transdimensional Reconstructor Core Physics Calibrator Spacefold Activator Core Regenerator Integrity Redistributor Core Expander Achievements -------------- Do Not Disturb Fishing Tech Loot Taster Ponder That! Some Acronyms Are Better Than Others Walls Are Suggestions Challenges ------------ None Game ------ Seed CoreMultitargetingMallet Manual? 0 Play Time 04:29:38 Cumulative 917.7 hours Start 2025.11.27 @ 20:10:35 End 2025.11.28 @ 14:51:48 Sessions 4 Manual Loads 0 Difficulty Rogue Special Mode None Game No. 826 Rogue 739 Adventurer 87 Explorer 0 Win Type 2 Total 61 Types 9/7/32/2/1/1/5/1/1/2 Lore% 97 Gallery% 93 Achievement% 70 Wizard Run 0 Options --------- Layout 0 ASCII 0 Keyboard 1 Movement Numpad Keybinds 0 Fullscreen 2 Font 18/SmallcapsGlow Map View 76x50 Zoom Use 0% Tactical HUD 1 Map Filters NONE Filters NONE Steam 1 RUN: 52af3617-d7de-4ee6-8f80-6a3d3fea5d63